bitfinex-derivatives/quotes_BTCF0:USTF0_20260106
["timestamp","ask_amount","ask_price","bid_price","bid_amount"]
[1767715383766,0.09186668,93793.0,93772.0,0.010666]
[1767715383967,0.09072,93794.0,93773.0,0.09072]
[1767715384560,0.10615424,93794.0,93773.0,0.09072]
[1767715385265,0.09186668,93793.0,93773.0,0.09072]
[1767715385459,0.09186668,93793.0,93766.0,0.09072]
[1767715385662,0.09186668,93793.0,93768.0,0.02584639]
[1767715386768,0.09186668,93793.0,93768.0,0.03651339]
[1767715387573,0.09186668,93793.0,93770.0,0.13665094]
[1767715388070,0.09072,93799.0,93778.0,0.02584639]
[1767715388271,0.09072,93799.0,93780.0,0.13665094]
[1767715388766,0.09072,93799.0,93778.0,0.09072]
[1767715388967,0.09186668,93792.0,93764.0,0.010667]
[1767715389271,0.09186668,93792.0,93765.0,0.09072]
[1767715389472,0.09186668,93792.0,93770.0,0.13665094]
[1767715390181,0.09186668,93792.0,93769.0,0.010667]
[1767715390469,0.10579428,93799.0,93771.0,0.010666]
[1767715390675,0.19766096,93799.0,93771.0,0.010666]
[1767715390975,0.19766096,93799.0,93768.0,0.09719381]
[1767715390976,0.09186668,93798.0,93768.0,0.09719381]
[1767715391274,0.09186668,93792.0,93765.0,0.09072]
[1767715391474,0.09186668,93792.0,93767.0,0.010667]
[1767715391864,0.09186668,93792.0,93769.0,0.010667]
[1767715392274,0.09186668,93792.0,93770.0,0.13665094]
[1767715392468,0.10579428,93799.0,93770.0,0.16249733]
[1767715392671,0.19766096,93799.0,93770.0,0.16249733]
[1767715392869,0.09186668,93798.0,93770.0,0.16249733]
[1767715393171,0.09186668,93798.0,93774.0,0.02584639]
[1767715393775,0.09186668,93814.0,93788.0,0.13665094]
[1767715394070,0.15140798,93814.0,93790.0,0.1230402]
[1767715394267,0.15140798,93814.0,93791.0,0.010664]
[1767715394466,0.0145463,93814.0,93797.0,0.010663]
[1767715394659,0.09072,93819.0,93800.0,0.13665094]
[1767715394864,0.09072,93819.0,93796.0,0.02584639]
[1767715395972,0.09186668,93832.0,93803.0,0.02584639]
[1767715396166,0.01450111,93834.0,93811.0,0.02584639]
[1767715396369,0.09072,93839.0,93811.0,0.11656639]
[1767715396777,0.24037714,93839.0,93811.0,0.11656639]
[1767715397071,0.24037714,93839.0,93811.0,0.2137602]
[1767715397272,0.10632363,93839.0,93814.0,0.010661]
[1767715397575,0.09072,93838.0,93812.0,0.1230402]
[1767715397783,0.09072,93838.0,93820.0,0.13665094]
[1767715397977,0.09072,93838.0,93812.0,0.1230402]
[1767715397978,0.09072,93838.0,93814.0,0.02584639]
[1767715398165,0.09186668,93835.0,93806.0,0.02584639]
[1767715398371,0.09186668,93835.0,93807.0,0.09072]
[1767715398773,0.09186668,93835.0,93808.0,0.010662]
[1767715399572,0.09186668,93835.0,93807.0,0.09072]
[1767715399881,0.09186668,93834.0,93807.0,0.09072]
[1767715400171,0.09186668,93834.0,93800.0,0.13665094]
[1767715400172,0.09186668,93832.0,93808.0,0.21142]
[1767715400475,0.09186668,93832.0,93809.0,0.09072]
[1767715401478,0.09072,93838.0,93808.0,0.1207]
[1767715401479,0.09186668,93824.0,93808.0,0.1207]
[1767715401665,0.09186668,93832.0,93810.0,0.13665094]
[1767715401866,0.09068,93831.0,93810.0,0.13665094]
[1767715402064,0.09068,93831.0,93808.0,0.1207]
[1767715402282,0.09186668,93829.0,93808.0,0.1207]
[1767715402470,0.09186668,93828.0,93808.0,0.1207]
[1767715403798,0.09068,93831.0,93802.0,0.09068]
[1767715403799,0.09186668,93848.0,93824.0,0.02584639]
[1767715404083,0.09068,93846.0,93824.0,0.02584639]
[1767715404270,0.18254668,93846.0,93820.0,0.09068]
[1767715404685,0.11580483,93844.0,93820.0,0.09068]
[1767715404868,0.09068,93846.0,93820.0,0.09068]
[1767715404869,0.09186668,93836.0,93820.0,0.09068]
[1767715405167,0.09186668,93832.0,93810.0,0.09068]
[1767715407283,0.09186668,93824.0,93795.0,0.02584639]
[1767715407477,0.09186668,93822.0,93796.0,0.09068]
[1767715407673,0.09186668,93815.0,93795.0,0.09068]
[1767715407982,0.09068,93823.0,93790.0,0.09068]
[1767715407983,0.09186668,93813.0,93790.0,0.09068]
[1767715408369,0.09186668,93812.0,93790.0,0.09068]
[1767715408970,0.09186668,93808.0,93775.0,0.010666]
[1767715409277,0.05962466,93816.0,93791.0,0.1230402]
[1767715409468,0.09068,93815.0,93791.0,0.1230402]
[1767715409668,0.09186668,93823.0,93790.0,0.010664]
[1767715409669,0.09068,93817.0,93793.0,0.02584639]
[1767715410471,0.09186668,93816.0,93787.0,0.09068]
[1767715410671,0.09186668,93815.0,93785.0,0.02584639]
[1767715410875,0.11580483,93810.0,93781.0,0.010665]
[1767715411074,0.09068,93817.0,93792.0,0.02584639]
[1767715411471,0.09068,93817.0,93792.0,0.12324583]
[1767715412477,0.09068,93817.0,93792.0,0.13390983]
[1767715412673,0.09068,93817.0,93795.0,0.12123559]
[1767715412872,0.09068,93817.0,93796.0,0.13189959]
[1767715413183,0.09068,93817.0,93796.0,0.12123559]
[1767715413483,0.09068,93817.0,93797.0,0.09068]
[1767715413683,0.09996961,93816.0,93797.0,0.09068]
[1767715414073,0.09996961,93816.0,93794.0,0.09068]
[1767715414277,0.12300132,93816.0,93794.0,0.09068]
[1767715414484,0.12300132,93814.0,93780.0,0.12123559]
[1767715414679,0.09996961,93814.0,93790.0,0.02383615]
[1767715414882,0.09996961,93814.0,93791.0,0.010664]
[1767715415476,0.09996961,93814.0,93790.0,0.02383615]
[1767715415681,0.09996961,93814.0,93790.0,0.03450015]
[1767715416081,0.09996961,93814.0,93790.0,0.02383615]
[1767715416679,0.09996961,93814.0,93791.0,0.010664]
[1767715416879,0.09996961,93814.0,93790.0,0.02383615]
[1767715417081,0.09996961,93814.0,93791.0,0.010664]
[1767715417283,0.09996961,93814.0,93790.0,0.02383615]
[1767715417988,0.09996961,93814.0,93789.0,0.09739944]
[1767715418882,0.09996961,93814.0,93789.0,0.10806344]
[1767715419080,0.09996961,93814.0,93789.0,0.09739944]
[1767715419282,0.5724023,93998.0,93781.0,0.09068]
[1767715419283,0.09996961,93839.0,93815.0,0.010661]
[1767715419483,0.24857481,93839.0,93813.0,0.02383615]
[1767715419692,0.09996961,93838.0,93812.0,0.18807944]
[1767715420084,0.09996961,93838.0,93812.0,0.09068]
[1767715420584,0.12300132,93830.0,93811.0,0.09068]
[1767715421491,0.12300132,93830.0,93809.0,0.09068]
[1767715422088,0.12300132,93826.0,93799.0,0.010663]
[1767715422289,0.09996961,93824.0,93807.0,0.010662]
[1767715422483,0.09996961,93838.0,93808.0,0.12123559]
[1767715422678,0.12300132,93838.0,93808.0,0.12123559]
[1767715422884,0.12300132,93826.0,93796.0,0.010664]
[1767715423086,0.09996961,93824.0,93798.0,0.010663]
[1767715423285,0.12300132,93820.0,93793.0,0.010664]
[1767715423593,0.12300132,93820.0,93794.0,0.09068]
[1767715423795,0.12300132,93820.0,93792.0,0.09739944]
[1767715423988,0.12300132,93820.0,93795.0,0.09068]
[1767715424388,0.09996961,93816.0,93795.0,0.09068]
[1767715424889,0.09996961,93824.0,93797.0,0.010663]
[1767715425687,0.09996961,93824.0,93800.0,0.02383615]
[1767715425888,0.09996961,93824.0,93801.0,0.02383615]
[1767715426295,0.09996961,93824.0,93795.0,0.09068]
[1767715426492,0.09996961,93824.0,93796.0,0.1203]
[1767715426987,0.09996961,93820.0,93796.0,0.1203]
[1767715427388,0.09996961,93820.0,93797.0,0.010663]
[1767715427699,0.09996961,93820.0,93796.0,0.1203]
[1767715430289,0.09996961,93827.0,93802.0,0.02383615]
[1767715430584,0.09068,93826.0,93804.0,0.02383615]
[1767715431194,0.09996961,93825.0,93797.0,0.02383615]
[1767715431693,0.09996961,93825.0,93799.0,0.010663]
[1767715432193,0.09996961,93825.0,93801.0,0.03449915]
[1767715432500,0.09996961,93825.0,93802.0,0.14413615]
[1767715432796,0.09996961,93825.0,93802.0,0.1203]
[1767715433694,0.12300132,93823.0,93802.0,0.1203]
[1767715434091,0.12300132,93823.0,93803.0,0.09068]
[1767715434799,0.09996961,93817.0,93801.0,0.09068]
[1767715435190,0.09068,93826.0,93805.0,0.02383615]
[1767715435593,0.09068,93826.0,93804.0,0.09739944]
[1767715436598,0.09068,93826.0,93805.0,0.02383615]
[1767715436791,0.09068,93826.0,93806.0,0.02383615]
[1767715437191,0.09068,93826.0,93806.0,0.03449815]
[1767715437591,0.09996961,93835.0,93810.0,0.13665094]
[1767715437791,0.15876484,93835.0,93813.0,0.03135392]
[1767715437989,0.15876484,93835.0,93814.0,0.09068]
[1767715438694,0.09068,93840.0,93815.0,0.02069192]
[1767715438894,0.14815324,93840.0,93815.0,0.02069192]
[1767715439398,0.09398435,93839.0,93815.0,0.02069192]
[1767715439997,0.14815324,93840.0,93804.0,0.1203]
[1767715439998,0.11541311,93833.0,93804.0,0.1203]
[1767715440301,0.09398435,93831.0,93806.0,0.010662]
[1767715440495,0.09398435,93827.0,93804.0,0.1203]
[1767715440696,0.09398435,93815.0,93800.0,0.09068]
[1767715440903,0.11541311,93811.0,93791.0,0.09068]
[1767715441101,0.09068,93820.0,93791.0,0.09068]
[1767715441102,0.11541311,93809.0,93791.0,0.09068]
[1767715441402,0.09398435,93809.0,93791.0,0.09068]
[1767715441902,0.09398435,93809.0,93785.0,0.1114217]
[1767715442102,0.09068,93816.0,93785.0,0.09068]
[1767715442103,0.09339792,93805.0,93785.0,0.09068]
[1767715442400,0.11453527,93803.0,93785.0,0.09068]
[1767715443399,0.11453527,93811.0,93785.0,0.09068]
[1767715443898,0.09068,93810.0,93785.0,0.09068]
[1767715444107,0.09068,93810.0,93786.0,0.0207417]
[1767715444603,0.09068,93810.0,93790.0,0.0207417]
[1767715444801,0.09068,93810.0,93790.0,0.11665637]
[1767715445001,0.09068,93810.0,93785.0,0.09068]
[1767715445002,0.09068,93823.0,93797.0,0.0314047]
[1767715445302,0.11453527,93828.0,93798.0,0.09068]
[1767715445507,0.11453527,93826.0,93798.0,0.09068]
[1767715445708,0.09339792,93826.0,93799.0,0.0314047]
[1767715445903,0.09339792,93826.0,93802.0,0.010663]
[1767715446814,0.09339792,93826.0,93801.0,0.0207417]
[1767715447111,0.09339792,93826.0,93798.0,0.09068]
[1767715447501,0.09339792,93824.0,93798.0,0.09068]
[1767715447901,0.09339792,93824.0,93802.0,0.010663]
[1767715448110,0.09339792,93824.0,93799.0,0.010663]
[1767715449711,0.09339792,93824.0,93800.0,0.010663]
[1767715450003,0.09339792,93824.0,93802.0,0.010663]
[1767715450204,0.09339792,93824.0,93801.0,0.1203]
[1767715450505,0.09339792,93824.0,93804.0,0.010663]
[1767715450709,0.09339792,93824.0,93801.0,0.130963]
[1767715451212,0.09339792,93824.0,93801.0,0.1203]
[1767715451613,0.09339792,93824.0,93802.0,0.010663]
[1767715451814,0.24286119,93831.0,93808.0,0.0207417]
[1767715452211,0.02113735,93839.0,93801.0,0.1203]
[1767715452212,0.09068,93833.0,93815.0,0.0207417]
[1767715452410,0.09339792,93847.0,93820.0,0.010661]
[1767715452602,0.09068,93846.0,93821.0,0.1410417]
[1767715452809,0.09339792,93847.0,93821.0,0.1410417]
[1767715453106,0.01357763,93848.0,93828.0,0.0207417]
[1767715453411,0.01357763,93848.0,93812.0,0.09068]
[1767715453412,0.09339792,93854.0,93830.0,0.0207417]
[1767715453712,0.09339792,93854.0,93817.0,0.010661]
[1767715453713,0.01325564,93854.0,93836.0,0.0207417]
[1767715453904,0.09068,93860.0,93836.0,0.0207417]
[1767715454507,0.10438345,93860.0,93836.0,0.0207417]
[1767715454711,0.09339792,93859.0,93834.0,0.18659467]
[1767715455618,0.09339792,93859.0,93834.0,0.09068]
[1767715455803,0.11453527,93859.0,93834.0,0.09068]
[1767715456008,0.11453527,93857.0,93834.0,0.09068]
[1767715456511,0.11453527,93851.0,93834.0,0.09068]
[1767715457015,0.11453527,93849.0,93826.0,0.1203]
[1767715457220,0.11453527,93845.0,93826.0,0.1203]
[1767715457413,0.01370345,93860.0,93818.0,0.09068]
[1767715457414,0.11453527,93841.0,93818.0,0.09068]
[1767715457713,0.11453527,93841.0,93810.0,0.09591467]
[1767715457714,0.09339792,93839.0,93810.0,0.09591467]
[1767715458014,0.09339792,93839.0,93810.0,0.12731837]
[1767715458601,0.09339792,93839.0,93812.0,0.0207417]
[1767715458809,0.09339792,93837.0,93809.0,0.09068]
[1767715459010,0.11453527,93837.0,93809.0,0.09068]
[1767715459612,0.09339792,93831.0,93809.0,0.09068]
[1767715459919,0.09339792,93831.0,93797.0,0.0207417]
[1767715459920,0.11453527,93825.0,93800.0,0.09068]
[1767715460213,0.09339792,93817.0,93789.0,0.0207417]
[1767715460418,0.09339792,93815.0,93790.0,0.09068]
[1767715460619,0.09339792,93815.0,93791.0,0.09068]
[1767715461308,0.09068,93818.0,93791.0,0.09068]
[1767715461309,0.09339792,93813.0,93791.0,0.09068]
[1767715462514,0.11453527,93813.0,93791.0,0.09068]
[1767715465913,0.09068,93813.0,93791.0,0.09068]
[1767715467118,0.18407792,93813.0,93791.0,0.09068]
[1767715467622,0.11453527,93810.0,93791.0,0.21098]
[1767715468614,0.09339792,93810.0,93791.0,0.21098]
[1767715471821,0.09068,93813.0,93791.0,0.21098]
[1767715472328,0.09068,93813.0,93791.0,0.09068]
[1767715473121,0.09068,93820.0,93801.0,0.11043128]
[1767715473323,0.09068,93827.0,93805.0,0.01963299]
[1767715473523,0.15610688,93831.0,93805.0,0.01963299]
[1767715473717,0.09679327,93829.0,93805.0,0.01963299]
[1767715474224,0.09679327,93829.0,93804.0,0.09079829]
[1767715474225,0.11714678,93829.0,93802.0,0.09068]
[1767715474528,0.09679327,93821.0,93802.0,0.09068]
[1767715476415,0.09068,93830.0,93781.0,0.1203]
[1767715476416,0.11714678,93813.0,93781.0,0.1203]
[1767715476619,0.11714678,93813.0,93782.0,0.21098]
[1767715477228,0.11714678,93813.0,93782.0,0.09068]
[1767715477828,0.09068,93815.0,93791.0,0.01963299]
[1767715478629,0.09068,93815.0,93792.0,0.01963299]
[1767715480046,0.18747327,93815.0,93792.0,0.01963299]
[1767715480224,0.09679327,93814.0,93784.0,0.01963299]
[1767715481925,0.09679327,93814.0,93785.0,0.01963299]
[1767715482122,0.02035351,93813.0,93785.0,0.01963299]
[1767715482323,0.02035351,93813.0,93782.0,0.09068]
[1767715482324,0.02035351,93805.0,93786.0,0.1203]
[1767715482637,0.09679327,93804.0,93786.0,0.1203]
[1767715483324,0.02035351,93803.0,93786.0,0.1203]
[1767715483526,0.11714678,93798.0,93782.0,0.09068]
[1767715484738,0.09679327,93798.0,93782.0,0.09068]
[1767715485536,0.09679327,93798.0,93774.0,0.09068]
[1767715485738,0.09679327,93790.0,93774.0,0.09068]
[1767715486033,0.11042773,93790.0,93774.0,0.09068]
[1767715487229,0.11042773,93790.0,93764.0,0.09068]
[1767715487230,0.01919781,93788.0,93764.0,0.09068]
[1767715487433,0.09679327,93787.0,93764.0,0.09068]
[1767715487733,0.09679327,93783.0,93764.0,0.09068]
[1767715487930,0.11579905,93783.0,93764.0,0.09068]
[1767715488235,0.11579905,93779.0,93764.0,0.09068]
[1767715488625,0.10431446,93790.0,93754.0,0.09068]
[1767715488626,0.11596145,93775.0,93754.0,0.09068]
[1767715488928,0.01363446,93790.0,93754.0,0.09068]
[1767715488929,0.09679327,93773.0,93754.0,0.09068]
[1767715489328,0.09679327,93773.0,93749.0,0.00213337]
[1767715489628,0.01897625,93778.0,93750.0,0.11043128]
[1767715489829,0.09068,93777.0,93753.0,0.11043128]
[1767715490030,0.09679327,93776.0,93749.0,0.00213337]
[1767715490531,0.09679327,93776.0,93752.0,0.11043128]
[1767715491324,0.09068,93775.0,93763.0,0.11043128]
[1767715491522,0.01885762,93782.0,93752.0,0.09079829]
[1767715491725,0.09679327,93779.0,93752.0,0.09079829]
[1767715491921,0.09679327,93779.0,93753.0,0.01963299]
[1767715492136,0.09679327,93779.0,93749.0,0.00213337]
[1767715492137,0.09679327,93779.0,93754.0,0.11043128]
[1767715492636,0.1152381,93775.0,93749.0,0.00213337]
[1767715493239,0.1152381,93773.0,93749.0,0.00213337]
[1767715493738,0.09679327,93763.0,93749.0,0.00213337]
[1767715494324,0.09072,93769.0,93749.0,0.00213337]
[1767715494528,0.18751327,93769.0,93749.0,0.00213337]
[1767715495136,0.11455544,93777.0,93749.0,0.00213337]
[1767715495331,0.09072,93776.0,93756.0,0.11043128]
[1767715495637,0.11455544,93785.0,93756.0,0.11043128]
[1767715495936,0.17359312,93785.0,93757.0,0.01963299]
[1767715496239,0.15583095,93785.0,93760.0,0.01963299]
[1767715496433,0.09072,93784.0,93760.0,0.11043128]
[1767715496831,0.09953824,93783.0,93750.0,0.11033573]
[1767715497031,0.09953824,93783.0,93753.0,0.11033573]
[1767715497227,0.09953824,93783.0,93755.0,0.11033573]
[1767715497633,0.09953824,93783.0,93756.0,0.09099393]
[1767715497835,0.09953824,93783.0,93758.0,0.0193418]
[1767715498036,0.11719133,93781.0,93751.0,0.01944298]
[1767715498239,0.11719133,93779.0,93751.0,0.01944298]
[1767715498541,0.09953824,93779.0,93752.0,0.11033573]
[1767715498745,0.09953824,93779.0,93751.0,0.00010118]
[1767715498746,0.05903768,93785.0,93760.0,0.11033573]
[1767715498928,0.09953824,93787.0,93760.0,0.11033573]
[1767715498929,0.09072,93784.0,93760.0,0.11033573]
[1767715499543,0.09072,93784.0,93761.0,0.11033573]
[1767715499746,0.09072,93784.0,93762.0,0.0193418]
[1767715500342,0.15788453,93787.0,93768.0,0.09099393]
[1767715500343,0.05834629,93787.0,93768.0,0.09099393]
[1767715500540,0.09953824,93794.0,93770.0,0.24699837]
[1767715500848,0.09072,93799.0,93774.0,0.11033573]
[1767715501045,0.14950262,93799.0,93776.0,0.010666]
[1767715501237,0.002132,93809.0,93785.0,0.11654092]
[1767715501541,0.01576188,93809.0,93785.0,0.11654092]
[1767715501744,0.01576188,93809.0,93785.0,0.09697015]
[1767715501745,0.1148858,93809.0,93785.0,0.09697015]
[1767715501941,0.01576188,93809.0,93789.0,0.01957077]
[1767715502146,0.01576188,93809.0,93789.0,0.11654092]
[1767715502535,0.1148858,93809.0,93785.0,0.09072]
[1767715503835,0.01614102,93804.0,93779.0,0.00010118]
[1767715504041,0.09912392,93783.0,93761.0,0.09072]
[1767715504639,0.01599953,93782.0,93761.0,0.09072]
[1767715504840,0.09912392,93781.0,93761.0,0.09072]
[1767715505032,0.11512345,93781.0,93761.0,0.09072]
[1767715505234,0.09912392,93781.0,93761.0,0.09072]
[1767715505448,0.09072,93782.0,93764.0,0.11654092]
[1767715505645,0.05802713,93788.0,93764.0,0.11654092]
[1767715505847,0.09072,93789.0,93764.0,0.11654092]
[1767715506455,0.14994869,93789.0,93764.0,0.11654092]
[1767715506634,0.09072,93789.0,93764.0,0.11654092]
[1767715506834,0.09072,93789.0,93761.0,0.09072]
[1767715506835,0.09912392,93789.0,93761.0,0.09072]
[1767715507039,0.09912392,93785.0,93761.0,0.09072]
[1767715507251,0.11510579,93785.0,93761.0,0.09072]
[1767715507448,0.09912392,93785.0,93761.0,0.09072]
[1767715508551,0.09912392,93794.0,93765.0,0.01957077]
[1767715508748,0.09072,93793.0,93766.0,0.01957077]
[1767715509146,0.09912392,93793.0,93768.0,0.11654092]
[1767715509342,0.01580054,93798.0,93770.0,0.13666264]
[1767715509658,0.09072,93797.0,93773.0,0.11654092]
[1767715510361,0.09912392,93800.0,93773.0,0.11654092]
[1767715510362,0.09072,93798.0,93774.0,0.11654092]
[1767715510551,0.09912392,93797.0,93773.0,0.09072]
[1767715513247,0.09072,93798.0,93773.0,0.09072]
[1767715513248,0.01466234,93792.0,93773.0,0.09072]
[1767715513448,0.09912392,93791.0,93773.0,0.09072]
[1767715513849,0.09912392,93785.0,93758.0,0.09697015]
[1767715514049,0.09912392,93785.0,93753.0,0.09072]
[1767715514050,0.09912392,93775.0,93753.0,0.09072]
[1767715514555,0.09912392,93775.0,93738.0,0.00010118]
[1767715514556,0.11342395,93767.0,93736.0,9.373e-05]
[1767715514752,0.11342395,93767.0,93745.0,0.09072]
[1767715515343,0.09912392,93765.0,93745.0,0.09072]
[1767715515545,0.09072,93769.0,93736.0,9.373e-05]
[1767715515546,0.01216666,93762.0,93736.0,9.373e-05]
[1767715515751,0.09912392,93763.0,93736.0,9.373e-05]
[1767715515752,0.01199092,93760.0,93736.0,9.373e-05]
[1767715515954,0.01199092,93758.0,93736.0,9.373e-05]
[1767715516153,0.09072,93769.0,93736.0,9.373e-05]
[1767715516154,0.11111484,93763.0,93736.0,9.373e-05]
[1767715516460,0.09912392,93761.0,93736.0,9.373e-05]
[1767715516861,0.18984392,93760.0,93736.0,9.373e-05]
[1767715517060,0.18984392,93759.0,93736.0,9.373e-05]
[1767715517259,0.09912392,93759.0,93736.0,9.373e-05]
[1767715517562,0.11087815,93759.0,93736.0,9.373e-05]
[1767715517758,0.09072,93760.0,93736.0,9.373e-05]
[1767715517759,0.01175423,93756.0,93736.0,9.373e-05]
[1767715518057,0.09072,93760.0,93736.0,9.373e-05]
[1767715518264,0.05777524,93768.0,93740.0,0.11654092]
[1767715518558,0.05777524,93768.0,93730.0,0.13666264]
[1767715518559,0.01169396,93756.0,93722.0,0.09072]
[1767715518760,0.09912392,93747.0,93722.0,0.09072]
[1767715519558,0.09912392,93746.0,93722.0,0.09072]
[1767715519753,0.09912392,93746.0,93715.0,0.01957077]
[1767715519754,0.09912392,93744.0,93717.0,0.09072]
[1767715519960,0.11064677,93740.0,93717.0,0.09072]
[1767715520147,0.11064677,93732.0,93717.0,0.09072]
[1767715520457,0.09912392,93731.0,93711.0,0.09072]
[1767715520658,0.09912392,93741.0,93711.0,0.09072]
[1767715520863,0.09912392,93741.0,93711.0,0.20726092]
[1767715521061,0.00918256,93742.0,93711.0,0.20726092]
[1767715521062,0.09912392,93739.0,93711.0,0.20726092]
[1767715522760,0.1120766,93739.0,93711.0,0.20726092]
[1767715522958,0.09912392,93733.0,93711.0,0.09072]
[1767715523158,0.09912392,93733.0,93704.0,0.11654092]
[1767715523159,0.10783992,93729.0,93700.0,0.09072]
[1767715523362,0.008716,93730.0,93667.0,0.01076718]
[1767715523363,0.008716,93724.0,93683.0,0.01957077]
[1767715523663,0.13666264,93730.0,93678.0,0.09697015]
[1767715523664,0.09912392,93711.0,93678.0,0.09697015]
[1767715523871,0.09072,93710.0,93678.0,0.09697015]
[1767715524262,0.09912392,93709.0,93678.0,0.09697015]
[1767715524661,0.09912392,93708.0,93678.0,0.09697015]
[1767715525155,0.09912392,93707.0,93678.0,0.09697015]
[1767715525370,0.09076,93706.0,93678.0,0.09697015]
[1767715525863,0.09076,93705.0,93685.0,0.09697015]
[1767715527370,0.09912392,93723.0,93695.0,0.09697015]
[1767715527557,0.09540038,93750.0,93694.0,0.01957077]
[1767715527558,0.09076,93722.0,93701.0,0.11654092]
[1767715527755,0.09912392,93733.0,93705.0,0.01957077]
[1767715528061,3.58696465,93840.0,93694.0,0.09076]
[1767715528062,0.09076,93732.0,93712.0,0.01957077]
[1767715528264,0.10736804,93741.0,93712.0,0.01957077]
[1767715528458,0.09912392,93739.0,93712.0,0.01957077]
[1767715529060,0.09912392,93738.0,93711.0,0.09697015]
[1767715529456,0.09912392,93737.0,93711.0,0.09697015]
[1767715529859,0.09912392,93735.0,93706.0,0.11033077]
[1767715530063,0.10712579,93723.0,93691.0,0.01957077]
[1767715530262,0.10712579,93723.0,93687.0,0.09697015]
[1767715530263,0.10712579,93721.0,93692.0,0.09076]
[1767715530562,0.09912392,93717.0,93692.0,0.09076]
[1767715530768,9.373e-05,93716.0,93692.0,0.09076]
[1767715530966,7.847e-05,93715.0,93699.0,0.01957077]
[1767715531164,0.09076,93716.0,93700.0,0.11654092]
[1767715531362,9.373e-05,93714.0,93700.0,0.11654092]
[1767715531866,0.09107194,93735.0,93704.0,0.11563708]
[1767715532070,0.09107194,93735.0,93700.0,0.54733664]
[1767715532071,0.09076,93733.0,93705.0,0.11563708]
[1767715532272,0.09107194,93732.0,93705.0,0.11563708]
[1767715532658,0.05878356,93735.0,93709.0,0.11563708]
[1767715532875,0.09076,93734.0,93709.0,0.11563708]
[1767715533463,0.09076,93734.0,93704.0,0.09076]
[1767715533464,0.14891531,93740.0,93714.0,0.01677722]
[1767715533665,0.09076,93747.0,93727.0,0.010671]
[1767715533970,0.10348209,93749.0,93727.0,0.11563708]
[1767715534174,0.09076,93748.0,93727.0,0.11563708]
[1767715534365,0.09107194,93764.0,93732.0,0.11563708]
[1767715534569,0.09076,93763.0,93739.0,0.11563708]
[1767715534766,0.10431401,93764.0,93739.0,0.11563708]
[1767715534964,0.00213268,93779.0,93726.0,0.09076]
[1767715534965,0.09076,93768.0,93742.0,0.01677722]
[1767715535171,0.09076,93768.0,93745.0,0.11563708]
[1767715535761,0.09107194,93767.0,93742.0,0.09076]
[1767715535975,0.09107194,93763.0,93742.0,0.09076]
[1767715536360,0.09107194,93763.0,93728.0,0.11563708]
[1767715536361,0.09107194,93763.0,93734.0,0.09076]
[1767715537173,0.09107194,93757.0,93734.0,0.09076]
[1767715537373,0.09076,93756.0,93734.0,0.09076]
[1767715537670,0.18183194,93756.0,93734.0,0.09076]
[1767715538175,0.09107194,93755.0,93734.0,0.09076]
[1767715540363,0.00213337,93749.0,93734.0,0.09076]
[1767715540568,0.09076,93769.0,93748.0,0.09885986]
[1767715540779,0.09076,93772.0,93750.0,0.13666264]
[1767715540970,0.09076,93772.0,93748.0,0.11563708]
[1767715541475,0.09107194,93778.0,93750.0,0.01677722]
[1767715541674,0.09107194,93778.0,93750.0,0.11563708]
[1767715541879,0.09076,93777.0,93750.0,0.11563708]
[1767715542172,0.09107194,93776.0,93745.0,0.09076]
[1767715542371,0.09076,93777.0,93750.0,0.010669]
[1767715542372,0.09107194,93774.0,93750.0,0.010669]
[1767715542577,0.09076,93777.0,93750.0,0.12630608]
[1767715542879,0.07293022,93779.0,93750.0,0.11563708]
[1767715543079,0.09076,93778.0,93750.0,0.25229972]
[1767715543277,0.09076,93778.0,93750.0,0.11563708]
[1767715543772,0.01514393,93779.0,93758.0,0.01677722]
[1767715543967,0.09076,93783.0,93760.0,0.25229972]
[1767715545474,0.07229182,93787.0,93763.0,0.11563708]
[1767715545673,0.09107194,93795.0,93763.0,0.11563708]
[1767715545878,0.09107194,93795.0,93757.0,0.09076]
[1767715545879,0.09076,93794.0,93770.0,0.13666264]
[1767715546072,0.18183194,93794.0,93768.0,0.11563708]
[1767715546268,0.09107194,93793.0,93760.0,0.25229972]
[1767715546468,0.09107194,93791.0,93760.0,0.25229972]
[1767715546966,0.09107194,93791.0,93761.0,0.01677722]
[1767715547277,0.09107194,93791.0,93763.0,0.11563708]
[1767715547768,0.09893921,93789.0,93757.0,0.09076]
[1767715548472,0.09893921,93789.0,93758.0,0.01677722]
[1767715548675,0.09893921,93789.0,93760.0,0.11563708]
[1767715548879,0.09107194,93789.0,93762.0,0.01677722]
[1767715550872,0.09837226,93789.0,93761.0,0.09885986]
[1767715551480,0.09837226,93789.0,93761.0,0.11563708]
[1767715551881,0.09820592,93787.0,93754.0,0.11563708]
[1767715552082,0.09820592,93771.0,93746.0,0.09072]
[1767715552382,0.09107194,93770.0,93746.0,0.09072]
[1767715552983,0.09785398,93771.0,93728.0,0.19604]
[1767715552984,0.09107194,93760.0,93738.0,0.09072]
[1767715553184,0.09107194,93759.0,93735.0,0.09072]
[1767715553381,0.09107194,93759.0,93732.0,0.11563708]
[1767715553580,0.09107194,93759.0,93732.0,0.01677722]
[1767715553581,0.09797613,93759.0,93732.0,0.01677722]
[1767715553775,0.00690419,93758.0,93728.0,0.09072]
[1767715554086,0.09107194,93757.0,93729.0,0.01677722]
[1767715554288,0.09107194,93757.0,93731.0,0.11563708]
[1767715555172,0.09107194,93757.0,93731.0,0.12630808]
[1767715555374,0.09107194,93757.0,93732.0,0.11563708]
[1767715556280,0.09107194,93757.0,93733.0,0.11563708]
[1767715556483,0.09072,93759.0,93740.0,0.01677722]
[1767715557186,0.09208135,93758.0,93733.0,0.01631123]
[1767715558483,0.09208135,93758.0,93733.0,0.10769939]
[1767715558685,0.18280135,93758.0,93733.0,0.10769939]
[1767715559084,0.09208135,93757.0,93733.0,0.10769939]
[1767715560187,0.09072,93758.0,93734.0,0.10769939]
[1767715560396,0.09072,93768.0,93750.0,0.01631123]
[1767715560587,0.09072,93772.0,93750.0,0.01631123]
[1767715561086,0.09208135,93786.0,93753.0,0.09138816]
[1767715561293,0.09072,93785.0,93756.0,0.10633548]
[1767715561487,0.09396393,93784.0,93756.0,0.10633548]
[1767715561688,0.09396393,93780.0,93749.0,0.015669]
[1767715561887,0.09396393,93778.0,93749.0,0.015669]
[1767715562188,0.09928386,93778.0,93749.0,0.015669]
[1767715562381,0.09072,93785.0,93744.0,0.09072]
[1767715562382,0.09396393,93770.0,93744.0,0.09072]
[1767715562588,0.09396393,93770.0,93744.0,0.19705548]
[1767715562908,0.09396393,93770.0,93746.0,0.026338]
[1767715563084,0.09396393,93770.0,93746.0,0.015669]
[1767715563481,0.09912412,93793.0,93750.0,0.015669]